Cogmind - Beta 17 @@@ ROGUE MODE // 2026.08.13 @ 19:45:48 Player: Ev Result: Destroyed by Autobeam Turret with Autobeam Performance ------------- Evolutions (0) 0 Regions Visited (2) 400 Robots Destroyed (50) 250 Value Destroyed (1121) 1121 Prototype IDs (3) 60 Alien Tech Used (0) 0 Bonus (5100) 5100 TOTAL SCORE: 6931 Bonus ------- Prayed to X0-1V1 5000 Major X0-1V1 Interference 100 Cogmind --------- Core Integrity 0/250 Matter 147/150 Energy 170/170 System Corruption 14% Temperature Cool (12) Movement Core (450) Ox8 Location -10/Subcaves Parts ------- > --- POWER (1) -------- Makeshift Power Source > --- PROPULSION (2) --- (None) > --- UTILITY (3) ------ Large Storage Unit X0-1V1's Piety Tracker > --- WEAPON (2) ------- Battle Rifle > --- INVENTORY (15) --- Subdweller Power Source Subdweller Optics Sensor Array Signal Interpreter Targeting Computer ECM Suite Weapon Shielding Authchip [Storage] Authchip [Armor] Cobbler Unit Battle Cannon Grenade Launcher Peak State ------------ > --- POWER ------------ Makeshift Power Source > --- PROPULSION ------- Wheel > --- UTILITY ---------- Large Storage Unit Light Armor Plating X0-1V1's Piety Tracker > --- WEAPON ----------- Battle Rifle Battle Rifle > --- INVENTORY -------- Subdweller Power Source Subdweller Optics Sensor Array Signal Interpreter Targeting Computer ECM Suite Weapon Shielding Authchip [Storage] Authchip [Armor] Cobbler Unit Battle Cannon Grenade Launcher [Rating: 26] Favorites ----------- Power Ion Engine Engine Ion Engine Propulsion Light Treads Treads Light Treads Wheel Wheel Utility Large Storage Unit Device X0-1V1's Piety Tracker Storage Large Storage Unit Protection Light Armor Plating Weapon Light Cannon Energy Gun Subdweller Laser Ballistic Gun Battle Rifle Ballistic Cannon Light Cannon Launcher Grenade Launcher Build | -11 -10 -10 ------- Run | Yrd Mat Sub Slots Evolved . | . . . Power . | . . . Propulsion . | . . . Utility . | . . . Weapon . | . . . Parts Attached 27 | 4 13 10 Power 4 | 1 1 2 Engine 4 | 1 1 2 Core . | . . . Reactor . | . . . Propulsion 6 | 2 3 1 Treads 5 | 2 3 . Leg . | . . . Wheel 1 | . . 1 Hover . | . . . Flight . | . . . Utility 6 | 1 4 1 Device 1 | . 1 . Storage 2 | 1 1 . Processor . | . . . Hackware . | . . . Protection 3 | . 2 1 Artifact . | . . . Weapon 11 | . 5 6 Energy Gun 1 | . . 1 Energy Cannon . | . . . Ballistic Gun 4 | . 2 2 Ballistic Cannon 5 | . 3 2 Launcher 1 | . . 1 Special Weapon . | . . . Impact Weapon . | . . . Slashing Weapon . | . . . Piercing Weapon . | . . . Special Melee Weapon . | . . . Unidentified Prototypes 1 | . 1 . Parts Lost 6 | . 1 5 Power 2 | . . 2 Propulsion 2 | . 1 1 Utility 1 | . . 1 Weapon 1 | . . 1 Highest Loss Streak 3 | . 1 3 To Critical Strikes . | . . . Average Backups 12 | 3 10 14 Power . | 1 1 . Propulsion . | . 1 . Utility 6 | . 4 9 Weapon 2 | 1 2 2 Tool/Special . | . . . Unused Backups 23 | . 9 14 Power 2 | . 1 1 Propulsion 3 | . 3 . Utility 12 | . 1 11 Weapon 5 | . 4 1 Tool/Special 1 | . . 1 Average Slot Usage (%) 94 | . 95 93 Engine 13 | . 14 12 Treads 19 | . 27 12 Wheel 3 | . . 6 Device 7 | . . 13 Storage 13 | . 14 13 Protection 8 | . 10 6 Ballistic Gun 8 | . 2 14 Ballistic Cannon 18 | . 24 12 Peak Build Rating 26 | 4 21 26 Average Rating 15 | 3 7 22 On Entrance 8 | . 4 21 Avg Prop Armor Cover (%) . | . . . Naked Turns . | . . . Heaviest Build 34 | 10 34 33 Greatest Support 40 | 40 40 40 Greatest Overweight (x) 9 | . . 9 Average Overweight (x) 1 | . . 1 Largest Inventory Capacity 15 | 8 15 15 Average Capacity 14 | 6 14 15 Most Carried 15 | 5 15 15 Average Carried 12 | 3 10 14 Final Capacity 15 | 8 15 15 Final Carried 15 | 5 15 13 Class Distribution -------------------- 100% | Mutant Dominant Class ---------------- Mutant | -10/Materials Mutant | -10/Subcaves Resources | -11 -10 -10 ----------- Run | Yrd Mat Sub Matter Collected 1257 | 143 674 440 Remotely . | . . . Salvage Created 1165 | . 829 336 Parts 76 | . 55 21 Haulers Intercepted 2 | . 2 . Recyclers Shooed 2 | . 2 . Parts Field Recycled . | . . . Retrieved Matter . | . . . Parts Self-Destructed 13 | . . 13 Prevented . | . . . Parts Restored . | . . . Kills | -11 -10 -10 ------- Run | Yrd Mat Sub Combat Hostiles Destroyed 38 | . 25 13 Guns 10 | . 3 7 Cannons 28 | . 22 6 Classes Destroyed 9 | . 7 2 Tunneler 1 | . 1 . Hauler 2 | . 2 . Recycler 3 | . 3 . Operator 3 | . 3 . Watcher 3 | . 3 . Swarmer 16 | . 12 4 Grunt 17 | . 13 4 Sentry 1 | . . 1 Subdweller 4 | . . 4 Best Kill Streak 9 | . 9 7 Combat Bots Only 7 | . 6 7 Max Kills in Single Turn 2 | . 2 2 Gunslinging 1 | . . 1 Exploded . | . . . Melee . | . . . Uniques/NPCs Destroyed . | . . . Combat | -11 -10 -10 -------- Run | Yrd Mat Sub Hostile Shots Fired 263 | . 95 168 Missed 82 | . 28 54 Hits 181 | . 67 114 Projectile 181 | . 67 114 AOE 1 | . . 1 Critical Strikes 3 | . 2 1 Damage Taken 1757 | . 665 1092 Core 317 | . 88 229 Absorbed by Shields . | . . . Regen/Repaired (Parts) 2 | . 2 . Core Remaining (%) 100 | 100 . . Volleys Fired 122 | . 84 38 Largest 2 | . 2 2 Hottest 63 | . 60 63 Shots Fired 241 | . 168 73 Gun 46 | . 24 22 Cannon 194 | . 144 50 Launcher 1 | . . 1 Special . | . . . Kinetic 239 | . 168 71 Thermal 1 | . . 1 Explosive 1 | . . 1 Electromagnetic . | . . . Robot Hit Streak 11 | . 9 11 Robot Miss Streak 4 | . 4 3 Penetration Max . | . . . Secondary Targets 4 | . 1 3 Max Gunslinging Chain 1 | . 1 1 Shots Hit Robots 138 | . 91 47 Core Hits 59 | . 42 17 Critical Kills . | . . . Critical Parts Destroyed . | . . . Critical Strikes 6 | . 4 2 Blast 6 | . 4 2 Melee Attacks . | . . . Impact . | . . . Slashing . | . . . Piercing . | . . . Sneak Attacks . | . . . Combat Hostiles . | . . . Follow-up Attacks . | . . . Damage Inflicted 2348 | . 1683 665 Guns 289 | . 137 152 Cannons 1892 | . 1379 513 Explosions 167 | . 167 . Melee . | . . . Ramming . | . . . Kinetic 2181 | . 1516 665 Thermal . | . . . Explosive 167 | . 167 . Electromagnetic . | . . . Impact . | . . . Slashing . | . . . Piercing . | . . . Highest Corruption 14 | . . 14 Average Corruption 13 | . . 13 Corruption Purged . | . . . Corruption Blocked . | . . . Effects 14 | . . 14 Message Errors 4 | . . 4 Matter Fused 5 | . . 5 Energy Discharges 1 | . . 1 Data Loss (minor) 1 | . . 1 Misfires 1 | . . 1 Weapon Failures 2 | . . 2 Overload Shots . | . . . Overflow Damage 15 | . 15 . Projectiles 15 | . 15 . Explosions . | . . . Melee . | . . . Knockbacks 20 | . 15 5 Impact . | . . . Kinetic 17 | . 12 5 Secondary 3 | . 3 . Self-Inflicted Damage 17 | . . 17 Shots 1 | . . 1 Rammed . | . . . Targets Rammed . | . . . Kicked . | . . . Crushed . | . . . Highest Temperature 183 | . 183 2 Average Temperature 47 | . 48 1 Received Heat Transfer 573 | . 222 351 Siege Activations . | . . . Martial Activations . | . . . Shielding Activations . | . . . Robots Disrupted . | . . . Combat Hostiles . | . . . Robots Corrupted . | . . . Combat Hostiles . | . . . Parts Fried . | . . . Impact Corruptions . | . . . Robots Melted . | . . . Combat Hostiles . | . . . Parts Melted 1 | . . 1 Heat Transferred . | . . . Parts Sabotaged . | . . . Parts Stolen . | . . . Parts Stripped . | . . . Power Chain Reactions . | . . . Alert | -11 -10 -10 ------- Run | Yrd Mat Sub Maximum Alert Level 1 | . 1 . Low Security (%) 37 | 100 33 . Level 1 62 | . 66 . Level 2 . | . . . Level 3 . | . . . Level 4 . | . . . Level 5 . | . . . High Security . | . . . Max Security . | . . . Peak Influence 339 | . 339 . Initial . | . . . Average 196 | . 209 . Influence Increases 1133 | . 823 310 Destroy 0b10 Robot/C 680 | . 500 180 Destroy 0b10 Robot/NC 60 | . 60 . Destroy Leader 130 | . 120 10 Successful Hack 33 | . 33 . Select Force Hacks 30 | . 30 . Disable Machine 60 | . 60 . Destroy Structure 20 | . 20 . Lose Combat Pursuer 120 | . . 120 Influence Decreases 915 | . 508 407 Entered New Map 152 | . . 152 Time Decay 713 | . 498 215 Lost Part 50 | . 10 40 Squads Dispatched 8 | . 8 . Investigation 7 | . 7 . Extermination . | . . . Reinforcement 1 | . 1 . Assault . | . . . Garrison . | . . . Intercept . | . . . Searches Triggered . | . . . Construction Impeded . | . . . Haulers Reinforced . | . . . Active Scanning Responses . | . . . Cargo Convoy Interrupts . | . . . Stealth | -11 -10 -10 --------- Run | Yrd Mat Sub Distress Signals 1 | . 1 . Communications Jammed . | . . . Distress Signals . | . . . Times Spotted 52 | . 35 17 Peak Tracking Total 9 | . 5 9 Tactical Retreats 4 | . . 4 Traps | -11 -10 -10 ------- Run | Yrd Mat Sub Traps Triggered 2 | . 1 1 Indirectly . | . . . Trap Hack Attempts . | . . . Triggered . | . . . Disarmed . | . . . Reprogrammed . | . . . Reused . | . . . Traps Extracted . | . . . Installed . | . . . Triggered . | . . . Machines | -11 -10 -10 ---------- Run | Yrd Mat Sub Machines Disabled 8 | . 7 1 Max in Single Turn 2 | . 2 1 Machines Repaired . | . . . Machines Dismantled . | . . . Machines Sabotaged . | . . . Overloaded Fab Kills . | . . . Hacking | -11 -10 -10 --------- Run | Yrd Mat Sub Machines Accessed 9 | . 9 . Terminals 7 | . 7 . Fabricators . | . . . Repair Stations 1 | . 1 . Recycling Units 1 | . 1 . Scanalyzers . | . . . Garrison Access . | . . . Total Hacks 30 | . 30 . Successful 17 | . 17 . Failed 13 | . 13 . Catastrophic 2 | . 2 . Database Lockouts . | . . . Manual 24 | . 24 . Terminals 25 | . 25 . Fabricators . | . . . Repair Stations 2 | . 2 . Recycling Units 3 | . 3 . Scanalyzers . | . . . Garrison Access . | . . . Terminal Hacks 4 | . 4 . Prototype ID Bank 1 | . 1 . Terminal Index 1 | . 1 . Scanalyzer Index 1 | . 1 . Locate Traps 1 | . 1 . Fabricator Hacks . | . . . Repair Station Hacks 2 | . 2 . Scan Component 1 | . 1 . Repair 1 | . 1 . Recycling Unit Hacks 2 | . 2 . Report Inventory 1 | . 1 . Retrieve Components 1 | . 1 . Scanalyzer . | . . . Garrison Access Hacks . | . . . Unauthorized Hacks 9 | . 9 . Terminals 8 | . 8 . Track 1 | . 1 . Assimilate 1 | . 1 . Botnet 5 | . 5 . Operators 1 | . 1 . Fabricators . | . . . Repair Stations . | . . . Recycling Units 1 | . 1 . Tunnel 1 | . 1 . Scanalyzers . | . . . Garrison Access . | . . . Data Cores Recovered 2 | . 2 . Used 1 | . 1 . Hacking Detections 9 | . 9 . Full Trace Events 6 | . 6 . Feedback Events . | . . . Feedback Blocked . | . . . Robot Schematics Acquired . | . . . Robots Built . | . . . Authchips . | . . . Time . | . . . Total Robot Build Rating . | . . . Part Schematics Acquired . | . . . Parts Built . | . . . Authchips . | . . . Time . | . . . Total Part Build Rating . | . . . Part Studies Acquired . | . . . Parts Repaired 1 | . 1 . Time 26 | . 26 . Parts Recycled . | . . . Recycled Matter . | . . . Retrieved Matter . | . . . Retrieved Components 7 | . 7 . Parts Scanalyzed . | . . . Part Schematics Acquired . | . . . Parts Damaged . | . . . Bothacking | -11 -10 -10 ------------ Run | Yrd Mat Sub Used RIF Installer . | . . . Robots Hacked . | . . . Non-combat . | . . . Combat . | . . . Robot Hacks Applied . | . . . Relay Couplers Released . | . . . Fabnet Peak Effective % . | . . . Robots Rewired . | . . . Allies Hacked . | . . . Hacks Repelled . | . . . Allies | -11 -10 -10 -------- Run | Yrd Mat Sub Total Allies . | . . . Largest Group . | . . . Highest-Rated Group . | . . . Highest-Rated Ally . | . . . Total Orders . | . . . Ally Attacks . | . . . Total Damage . | . . . Kills . | . . . Allies Corrupted . | . . . Allies Melted . | . . . X0-1V1 Amusement Gains 13 | . 3 10 Good Acts 6 | . . 6 Bad Acts 8 | . . 8 Intel | -11 -10 -10 ------- Run | Yrd Mat Sub Active Infowar (turns) . | . . . Robot Analysis Total . | . . . Derelict Logs Recovered 1 | . . 1 Drone Launches . | . . . Drone Recoveries . | . . . Exploration | -11 -10 -10 ------------- Run | Yrd Mat Sub Turns Passed 2903 | 86 1322 1495 Spaces Moved 1608 | 54 617 937 Core 18 | 11 . 7 Treads 1005 | 43 617 345 Legs . | . . . Wheels 585 | . . 585 Hover . | . . . Flight . | . . . Fastest Speed 50 | 50 160 125 Average Speed 148 | 137 160 140 Slowest Speed 500 | 160 160 500 Overloaded Moves . | . . . Propulsion Burnouts . | . . . Robots Hopped . | . . . Potential Cave-ins . | . . . Cave-ins Triggered . | . . . Exploration Rate (%) 56 | 4 96 70 Regions Visited 2 Branch Regions 1 Pre-discovered Areas 2 | . 1 1 Known Exits Taken . | . . . Unknown Exits Taken 2 | 1 1 . Scrap Searched . | . . . Spaces Dug . | . . . Terrain Destroyed 26 | . 19 7 Melee . | . . . Projectile 1 | . 1 . AOE 25 | . 18 7 Terrain Rammed . | . . . Walls Destroyed . | . . . Machines Disabled . | . . . Actions | -11 -10 -10 --------- Run | Yrd Mat Sub Total 1905 | 66 795 1044 Wait 65 | . 36 29 Move 1606 | 53 616 937 Hop . | . . . Pick Up 51 | 9 29 13 Fast Attach 2 | . 1 1 Attach 17 | 4 7 6 Detach . | . . . Swap 13 | . 5 8 Drop 29 | . 17 12 Fire 122 | . 84 38 Melee . | . . . Ram . | . . . Kick . | . . . Crush . | . . . Escape Stasis . | . . . Rewire . | . . . Trap . | . . . Miscellaneous . | . . . Route ------- -11/Scrapyard -10/Materials (discovered 6 exits: [*Mat x3] / [*Min x2] / [*Sub]) -10/Subcaves (discovered 1 exit: *Rec) History --------- Turn | Location | Event 8 | -11/Scrapyard | Discovered new exit (range 15) 87 | -11/Scrapyard | Entered Materials 267 | -10/Materials | Discovered new exit (range 7) 306 | -10/Materials | Build established: Mutant 399 | -10/Materials | Discovered new exit (range 15) 709 | -10/Materials | Repaired Datajack? 849 | -10/Materials | Discovered new exit (range 9) 849 | -10/Materials | Discovered new exit (range 15) 1161 | -10/Materials | Discovered new exit (range 16) 1365 | -10/Materials | Discovered new exit (range 9) 1388 | -10/Materials | Prayed at D.C.S.S. Altar Unit 1409 | -10/Materials | Entered Subcaves 1412 | -10/Subcaves | Ambushed by Subdwellers from Twisted Machinery 1428 | -10/Subcaves | Core integrity fell below 50% 1517 | -10/Subcaves | Shifting Twisted Machinery released Battle Cannon 1695 | -10/Subcaves | Core integrity fell below 20% 1828 | -10/Subcaves | Shifting Twisted Machinery released Sub. Monowheel 1837 | -10/Subcaves | Shifting Twisted Machinery released Battle Rifle 2049 | -10/Subcaves | Learned location of Zion (-6) 2068 | -10/Subcaves | X0-1V1 mutated your Propulsion slot to Utility slot 2328 | -10/Subcaves | Propulsion slot count permanently improved by X0-1V1 (+1) 2376 | -10/Subcaves | Core integrity restored by X0-1V1 (+60) 2424 | -10/Subcaves | Identified exit to Recycling 2424 | -10/Subcaves | X0-1V1 revealed exit location to -7/Recycling 2449 | -10/Subcaves | X0-1V1 activates XOMVISION 2572 | -10/Subcaves | System corruption reached 10% 2894 | -10/Subcaves | Destroyed 7 combat bots 2896 | -10/Subcaves | Lost 3 parts (1p1n1u) 2904 | -10/Subcaves | Destroyed by Autobeam Turret with Autobeam Last Messages --------------- 02855_ Switching to secondary target: S-10 Pest. 02856_ Aluminum Leg fries itself beyond repair. 02856_ Heat Sink fries itself beyond repair. 02856_ Beam Rifle fries itself beyond repair. 02856_ Lgt. Armor Plating destroyed. 02863_ S-10 Pest destroyed. 02865_ Wheel destroyed. 02872_ System corrupted: Matter fused (-10). 02873_ S-10 Pest destroyed. 02876_ Acquired 13 matter. 02881_ Acquired 38 matter. 02883_ Lgt. Assault Rifle fries itself beyond repair. 02883_ Subatomizers dissect the Lgt. Ion Engine. 02886_ Acquired 47 matter. 02890_ Lgt. Ion Engine fries itself beyond repair. 02901_ Acquired 7 matter. 02903_ Battle Rifle destroyed. 02904_ X0-1V1 bursts into laughter! Map ----- +----------------------------------------------------+ | #?????????# #????????????# # | | ^ #?????????## ##????????????# # | | ##??????####### #?????????????# # # | | # ##??###### ####### ##?????????????#####" # | | # ####### ##### ##?????????????????# # | | # ## # ## ## #?????????????????## # | | # #??????????????????# | | ######?????????????## | | ^ # # ## #######????????# | | ##### # ##### ]== ## # ###??????## | | ##???# ###### ###### #???????# | | #????# #????#### ### #??????## | | #??? #???????# ##?### ######### | | #?## #???????## ######## ## # | | #?? ????????## ##??# | | #?## ?????????#### #???# | | #######??? ????????????# #???# # # ## | | ##????????? ??????????? ###?#### ! #### | | ??????????? ?????????? ##??## / #?# | | ??????????? ???????? ##??## ### ## | | ??????????? ???????## #???## ####?## ###### | | ??????????? ????????####??### ####????# ##????# # | | ??????????? ????????????### % #????###?????### | | ??????????? ???#??????### %% #??????????????? | | ???????????????#" # #??????????????? | | ???????????????#""t @ # #??????????????? | | ??????????????#> % # #??????????????? | | ??????????????##""t ########??????????????? | | ???????????????#" # #?????????????????????? | | ???????????????#" ?## #?????????????????????? | | ???????????????#" ???#####?????????????????????? | | ???????????????####??????????????????????????????? | | ?????????????????????????????????????????????????? | | ?????????????????????????????????????????????????? | | ?????????????????????????????????????????????????? | | ?????????????????????????????????????????????????? | | ?????????????????????????????????????????????????? | | ?????????????????????????????????????????????????? | | ????????????????????????????????????????????????## | | ???????????????????????????????????????????????# # | | ????????????????????????????????????????????#### | | ????????????????????????????????????????????# | | ???????????????????????????????????????????## | | ??????????????????????????????????????????## # | | ??????????????????????????????????????????# #? | | ??????????????????????????????????????????# #?? | | ??????????????????????????????????????????# #### | | ??????????????????????????????????????????# | | ??????????????????????????????????????????# | | ?????????????????????????????????????????## | +----------------------------------------------------+ Best States ------------- Heat Dissipation 25 Energy Generation 15 Energy Capacity 250 Matter Stores 275 Matter Capacity 300 Sight Range 21 Terrain Scan Density 10 Armor Coverage 150 Weapon Shielding 33 Evasion (%) 50 Recoil Reduction 2 Authchip Count 2 Item Schematics ----------------- None Robot Schematics ------------------ None Fabricated ------------ Nothing Repaired ---------- Datajack | 80% | -10/Materials Studied --------- None Alien Tech Used ----------------- None Achievements -------------- None Challenges ------------ None Game ------ Seed NanofilamentsGreatFirepult Manual? 0 Play Time 00:26:47 Cumulative 83.6 hours Start 2026.08.13 @ 19:08:38 End 2026.08.13 @ 19:45:48 Sessions 1 Manual Loads 0 Difficulty Rogue Special Mode None Game No. 144 Rogue 144 Adventurer 0 Explorer 0 Win Type - Total 0 Types 0/0/0/0/0/0/0/0/0/0 Lore% 27 Gallery% 35 Achievement% 28 Wizard Run 0 Options --------- Layout 1 ASCII 0 Keyboard 0 Movement Mouse Keybinds 0 Fullscreen 1 Font 24/Smallcaps Map View 50x35 Zoom Use 0% Tactical HUD 1 Map Filters NONE Filters NONE Steam 1 RUN: 3928dcaf-b702-4345-80a5-9d7bc9dbd84f